bitfinex/quotes_BTCUSD_20250206
["timestamp","ask_amount","ask_price","bid_price","bid_amount"]
[1738850777621,0.48516742,98634.0,98633.0,0.00022428]
[1738850778001,0.48516742,98634.0,98633.0,0.00122428]
[1738850787620,0.33309042,98634.0,98633.0,0.00122428]
[1738850787953,0.33309042,98634.0,98633.0,0.00563445]
[1738850788160,0.33309042,98634.0,98633.0,0.22890228]
[1738850788600,0.33309042,98634.0,98633.0,0.23331245]
[1738850789002,0.33309042,98634.0,98633.0,0.08123445]
[1738850789212,0.00799042,98634.0,98633.0,0.08123445]
[1738850789460,0.00799042,98634.0,98633.0,0.23331245]
[1738850789810,0.00799042,98634.0,98633.0,0.08123445]
[1738850790439,0.00799042,98634.0,98633.0,0.23331245]
[1738850790708,0.00799042,98634.0,98633.0,0.08423445]
[1738850790881,0.00799042,98634.0,98633.0,0.08023445]
[1738850791044,0.15228928,98642.0,98633.0,0.08123445]
[1738850791250,0.15228928,98642.0,98633.0,0.08423445]
[1738850791538,0.00022428,98642.0,98633.0,0.23631245]
[1738850791708,0.152067,98641.0,98633.0,0.08423445]
[1738850791914,0.152067,98641.0,98633.0,0.08123445]
[1738850792525,0.152068,98640.0,98633.0,0.08123445]
[1738850792729,0.16005655,98640.0,98633.0,0.08023445]
[1738850793182,0.00798855,98640.0,98633.0,0.23231245]
[1738850793387,0.00798855,98640.0,98633.0,0.08023445]
[1738850793791,0.00798855,98640.0,98633.0,0.08123445]
[1738850793999,0.00798855,98639.0,98633.0,0.08023445]
[1738850794442,0.00798855,98639.0,98634.0,0.152077]
[1738850794616,0.00798855,98639.0,98635.0,0.00440285]
[1738850794822,0.00798855,98639.0,98633.0,0.07582428]
[1738850795041,0.00798855,98638.0,98634.0,0.00440329]
[1738850795265,0.00798855,98638.0,98634.0,0.15648029]
[1738850795864,0.00798855,98638.0,98637.0,0.152072]
[1738850796065,0.00798855,98638.0,98637.0,0.00440198]
[1738850796397,0.00022428,98642.0,98633.0,0.07582428]
[1738850796570,0.00022428,98642.0,98641.0,0.275566]
[1738850796751,0.00022428,98642.0,98641.0,0.37806965]
[1738850796910,0.00022428,98642.0,98641.0,0.38246988]
[1738850797517,0.00022428,98642.0,98641.0,0.53246988]
[1738850797833,0.00022428,98642.0,98641.0,0.53446988]
[1738850798329,0.00022428,98642.0,98641.0,0.56200609]
[1738850798447,0.00022428,98642.0,98641.0,0.55500609]
[1738850798653,0.00022428,98642.0,98641.0,0.57370598]
[1738850799107,0.00022428,98642.0,98641.0,0.57170598]
[1738850799510,0.00022428,98642.0,98641.0,0.57470598]
[1738850799990,0.00022428,98642.0,98641.0,0.57170598]
[1738850800326,0.00022428,98642.0,98641.0,0.56570598]
[1738850800968,0.00022428,98642.0,98641.0,0.57170598]
[1738850801144,0.00022428,98642.0,98641.0,0.57470598]
[1738850801339,0.00022428,98642.0,98641.0,0.56570598]
[1738850801749,0.00022428,98642.0,98641.0,0.57470598]
[1738850808263,0.00022428,98642.0,98641.0,0.52720598]
[1738850808447,0.00022428,98642.0,98641.0,0.37720598]
[1738850808863,0.00022428,98642.0,98641.0,0.22513998]
[1738850809076,0.00022428,98642.0,98641.0,0.01640023]
[1738850809430,0.15228928,98642.0,98641.0,0.01640023]
[1738850809632,0.15228928,98642.0,98641.0,0.012]
[1738850813410,0.15228928,98642.0,98641.0,0.0121068]
[1738850816410,0.67791059,98642.0,98641.0,0.0121068]
[1738850816585,0.65779293,98642.0,98641.0,0.0121068]
[1738850816799,0.71701711,98642.0,98641.0,0.0121068]
[1738850817175,0.86701711,98642.0,98641.0,0.0121068]
[1738850817374,0.352077,98634.0,98633.0,0.00022428]
[1738850817575,0.58268065,98634.0,98633.0,0.00022428]
[1738850817807,0.73268065,98634.0,98633.0,0.00022428]
[1738850818817,0.73468065,98634.0,98633.0,0.00022428]
[1738850819980,1.06578065,98634.0,98633.0,0.00122428]
[1738850820944,0.42638,98632.0,98631.0,2.8e-07]
[1738850821151,0.152089,98626.0,98625.0,8e-08]
[1738850821355,0.426419,98607.0,98606.0,0.0001068]
[1738850821558,0.86198265,98607.0,98606.0,0.0001068]
[1738850822176,0.88267922,98607.0,98606.0,0.0001068]
[1738850822708,0.88267922,98607.0,98606.0,9.7e-07]
[1738850822709,0.89062033,98607.0,98606.0,9.7e-07]
[1738850822965,0.99612398,98607.0,98606.0,9.7e-07]
[1738850823192,0.99612398,98607.0,98591.0,0.0002]
[1738850823193,0.629042,98592.0,98591.0,0.0002]
[1738850823335,0.73154565,98592.0,98591.0,0.00030801]
[1738850823712,0.94988676,98592.0,98591.0,0.00030801]
[1738850824334,0.94988676,98592.0,98591.0,1e-08]
[1738850824540,1.05239041,98592.0,98591.0,1e-08]
[1738850824768,1.05339041,98592.0,98591.0,1e-08]
[1738850825379,1.06346272,98592.0,98591.0,1e-08]
[1738850825611,1.06346272,98592.0,98551.0,0.0002]
[1738850825612,0.1,98569.0,98551.0,0.0002]
[1738850825790,0.85638265,98568.0,98567.0,0.00020543]
[1738850827202,0.85738265,98568.0,98567.0,0.00020543]
[1738850827412,0.87797081,98568.0,98567.0,0.00020543]
[1738850828023,0.79827081,98568.0,98567.0,0.00020543]
[1738850828807,0.77768265,98568.0,98567.0,0.00020543]
[1738850829010,0.77668265,98568.0,98567.0,0.00020543]
[1738850829416,0.78662798,98568.0,98567.0,0.00020543]
[1738850829620,0.88913163,98568.0,98567.0,0.00020543]
[1738850829823,0.78662798,98568.0,98567.0,0.00020543]
[1738850831363,1.09702798,98568.0,98567.0,0.00020543]
[1738850831563,1.17372798,98568.0,98567.0,0.00020543]
[1738850831981,1.18161249,98568.0,98567.0,0.00020543]
[1738850832394,1.18161249,98568.0,98567.0,4.3e-07]
[1738850832602,1.28411614,98568.0,98567.0,4.3e-07]
[1738850833054,1.31686632,98568.0,98567.0,4.3e-07]
[1738850833446,1.18161249,98568.0,98567.0,4.3e-07]
[1738850833622,1.20322238,98568.0,98567.0,4.3e-07]
[1738850834047,1.21218238,98568.0,98567.0,4.3e-07]
[1738850834289,1.21218238,98568.0,98551.0,0.0002]
[1738850834290,0.152191,98560.0,98551.0,0.0002]
[1738850834490,0.48894705,98560.0,98551.0,0.0002]
[1738850835245,0.48894705,98560.0,98542.0,0.01638697]
[1738850835246,0.152216,98544.0,98542.0,0.01638697]
[1738850835517,0.86810365,98543.0,98542.0,0.01621902]
[1738850835740,0.86810365,98543.0,98542.0,0.01088619]
[1738850836429,1.08787116,98543.0,98542.0,0.01088619]
[1738850836630,1.21086921,98543.0,98542.0,0.01088619]
[1738850836852,1.09111505,98543.0,98542.0,0.01088619]
[1738850837250,1.10011505,98543.0,98542.0,0.01088619]
[1738850837853,1.10011505,98543.0,98542.0,0.00044765]
[1738850838051,1.11541589,98543.0,98542.0,0.00044765]
[1738850838258,1.12337589,98543.0,98542.0,0.00044765]
[1738850838461,1.21541589,98543.0,98542.0,0.00044765]
[1738850838665,1.23958699,98543.0,98542.0,0.00144765]
[1738850839044,1.23058699,98543.0,98542.0,0.00144765]
[1738850839231,1.23058699,98543.0,98511.0,0.0002]
[1738850839232,0.352253,98520.0,98511.0,0.0002]
[1738850839438,1.26585665,98520.0,98519.0,2.9e-07]
[1738850839553,1.27585665,98520.0,98519.0,2.9e-07]
[1738850839958,0.402265,98512.0,98511.0,0.0002]
[1738850840264,0.56529575,98512.0,98511.0,0.00066353]
[1738850840888,0.52526305,98512.0,98511.0,0.00066353]
[1738850842178,0.52926305,98512.0,98511.0,0.00066353]
[1738850842311,0.54222305,98512.0,98511.0,0.00066353]
[1738850842878,0.88621396,98512.0,98511.0,0.00066353]
[1738850843027,0.88221396,98512.0,98511.0,0.00066353]
[1738850843231,0.98271761,98512.0,98511.0,0.00066353]
[1738850843437,0.98971761,98512.0,98511.0,0.00066353]
[1738850843661,0.98071761,98512.0,98511.0,0.00066353]
[1738850844024,0.98971761,98512.0,98511.0,0.00066353]
[1738850844395,0.98971761,98512.0,98471.0,0.0002]
[1738850844396,0.302327,98472.0,98471.0,0.0002]
[1738850844587,0.41279065,98472.0,98471.0,0.00033821]
[1738850844935,0.53919065,98472.0,98471.0,0.00033821]
[1738850845898,0.54019065,98472.0,98471.0,0.00033821]
[1738850846098,0.54111516,98472.0,98471.0,0.00033821]
[1738850846306,0.57107516,98472.0,98471.0,0.00033821]
[1738850846511,0.58198098,98472.0,98471.0,0.00033821]
[1738850847337,0.48198098,98472.0,98471.0,0.00033821]
[1738850847491,0.42562098,98472.0,98471.0,0.00033821]
[1738850847838,0.43823534,98472.0,98471.0,0.00033821]
[1738850847995,0.02349887,98472.0,98471.0,0.00033821]
[1738850848196,0.02349887,98472.0,98471.0,0.15266721]
[1738850848404,0.17382587,98472.0,98471.0,0.00033821]
[1738850848605,0.02149887,98472.0,98471.0,0.00033821]
[1738850848811,0.02649887,98472.0,98471.0,0.15266721]
[1738850849012,0.00788451,98483.0,98473.0,0.203099]
[1738850849172,0.00788451,98483.0,98471.0,0.00033821]
[1738850849173,0.002,98472.0,98471.0,0.15793076]
[1738850849374,0.002,98472.0,98471.0,0.15266721]
[1738850849595,0.004,98472.0,98471.0,0.15266721]
[1738850850100,0.005,98472.0,98471.0,0.15266721]
[1738850850257,0.08096469,98484.0,98472.0,0.152327]
[1738850850459,0.152314,98481.0,98473.0,0.152325]
[1738850850662,0.23327369,98484.0,98476.0,0.152321]
[1738850850902,0.08096469,98484.0,98482.0,0.152311]
[1738850851057,0.08096469,98484.0,98483.0,0.15231]
[1738850851423,0.08096469,98484.0,98471.0,0.00033821]
[1738850851626,0.08096469,98484.0,98471.0,0.00044511]
[1738850851832,0.08096469,98484.0,98481.0,0.203084]
[1738850852057,0.00789747,98492.0,98479.0,0.203087]
[1738850852255,0.00789747,98492.0,98491.0,0.152298]
[1738850852478,0.08096469,98495.0,98489.0,0.203067]
[1738850852479,0.08096469,98495.0,98494.0,0.152293]
[1738850852679,0.08096469,98495.0,98489.0,0.203067]
[1738850852893,0.08096469,98495.0,98488.0,0.0763]
[1738850853094,0.08096469,98495.0,98494.0,0.152293]
[1738850853435,0.08096469,98495.0,98488.0,0.0763]
[1738850853636,0.08096469,98495.0,98471.0,0.00044511]
[1738850853637,0.152308,98485.0,98478.0,0.0815]
[1738850853763,0.08096469,98495.0,98478.0,0.0815]
[1738850853964,0.203061,98493.0,98478.0,0.0815]
[1738850854177,0.08096469,98495.0,98480.0,0.13784626]
[1738850854380,0.08096469,98495.0,98487.0,0.203072]
[1738850854596,0.152311,98483.0,98478.0,0.0815]
[1738850854799,0.152311,98483.0,98448.0,0.01]
[1738850854800,0.08096469,98495.0,98469.0,0.0816]
[1738850855003,0.15232,98477.0,98469.0,0.0816]
[1738850855255,0.20308,98484.0,98469.0,0.0816]
[1738850855589,0.1523,98490.0,98481.0,0.152313]
[1738850855705,0.28402169,98495.0,98470.0,0.00101545]
[1738850855930,0.001,98483.0,98479.0,0.152316]
[1738850856136,0.10250365,98494.0,98472.0,0.00526407]
[1738850856337,0.152318,98478.0,98472.0,0.00526407]
[1738850856594,0.001,98490.0,98472.0,0.20836507]
[1738850856803,0.001,98490.0,98475.0,0.152321]
[1738850856804,0.152309,98484.0,98475.0,0.152321]
[1738850856999,0.152309,98484.0,98469.0,0.0816]
[1738850857206,0.152309,98484.0,98476.0,0.15758229]
[1738850857445,0.152309,98484.0,98476.0,0.15232]
[1738850857765,0.1523,98490.0,98477.0,0.00526176]
[1738850857981,0.00792702,98483.0,98482.0,0.152312]
[1738850858337,0.00792702,98483.0,98482.0,0.15757114]
[1738850859120,0.00792702,98483.0,98482.0,0.26109007]
[1738850859320,0.00892702,98483.0,98482.0,0.26007479]
[1738850859657,0.001,98483.0,98482.0,0.26007479]
[1738850859855,0.001,98483.0,98482.0,0.26207479]
[1738850860135,0.001,98483.0,98482.0,0.34327479]
[1738850861199,0.08096469,98495.0,98494.0,0.152293]
[1738850861400,0.08096469,98495.0,98490.0,0.152299]
[1738850861607,0.08096469,98495.0,98494.0,0.00524825]
[1738850861740,0.08096469,98495.0,98487.0,0.203071]
[1738850862084,0.08096469,98495.0,98494.0,0.00524825]
[1738850862285,0.08096469,98495.0,98482.0,0.0812]
[1738850862516,0.08096469,98495.0,98483.0,0.152309]
[1738850862695,0.08096469,98495.0,98483.0,0.00525402]
[1738850862831,0.203058,98494.0,98483.0,0.00525402]
[1738850863278,0.152306,98486.0,98483.0,0.00525402]
[1738850863520,0.00794862,98493.0,98482.0,0.0812]
[1738850863521,0.00794862,98493.0,98482.0,0.0001069]
[1738850864206,0.152308,98485.0,98482.0,0.0001069]
[1738850864410,0.152309,98484.0,98482.0,0.0001069]
[1738850864634,0.203062,98492.0,98482.0,0.0001069]
[1738850864834,0.152307,98486.0,98482.0,0.0001069]
[1738850865071,0.152307,98486.0,98483.0,0.005256]
[1738850865436,0.152307,98486.0,98482.0,0.0001069]
[1738850865637,0.152307,98485.0,98482.0,0.0001069]
[1738850865822,0.152307,98485.0,98483.0,0.00526253]
[1738850866021,0.152307,98485.0,98482.0,0.0001069]
[1738850866243,0.152304,98487.0,98482.0,0.0001069]
[1738850866440,0.152307,98486.0,98483.0,0.00526253]
[1738850866737,0.08096469,98495.0,98482.0,0.0011069]
[1738850866944,0.00795851,98485.0,98482.0,0.0011069]
[1738850867383,0.00795851,98485.0,98483.0,0.00526253]
[1738850867884,0.00795851,98485.0,98484.0,0.0052604]
[1738850868098,0.00795851,98485.0,98482.0,0.0001069]
[1738850868295,0.00795851,98485.0,98483.0,0.00626092]
[1738850868686,0.00795851,98485.0,98483.0,0.00526092]
[1738850868912,0.00795851,98485.0,98482.0,0.0001069]
[1738850869213,0.16026551,98485.0,98483.0,0.00526089]
[1738850869389,0.00795851,98484.0,98483.0,0.00526089]
[1738850869589,0.16026751,98484.0,98482.0,0.0001069]
[1738850870676,0.00795851,98484.0,98482.0,0.0001069]
[1738850870994,0.00795851,98483.0,98482.0,0.0001069]
[1738850872298,0.00795851,98483.0,98482.0,0.00536852]
[1738850872472,0.00795851,98483.0,98482.0,0.1524189]
[1738850872692,0.00795851,98483.0,98482.0,0.15868048]
[1738850873441,0.00795851,98483.0,98482.0,0.26219952]
[1738850873628,0.00795851,98483.0,98482.0,0.2711589]
[1738850873846,0.00795851,98483.0,98482.0,0.10887213]
[1738850873990,0.00795851,98483.0,98482.0,0.00636848]
[1738850874602,0.08096469,98495.0,98482.0,0.00636848]
[1738850874833,0.15231,98483.0,98482.0,0.00636848]
[1738850875043,0.203058,98494.0,98482.0,0.0011069]
[1738850875233,0.10250365,98493.0,98482.0,0.0011069]
[1738850875439,0.15231,98483.0,98482.0,0.0001069]
[1738850875674,0.203062,98492.0,98482.0,0.0001069]
[1738850875871,0.152307,98486.0,98482.0,0.0001069]
[1738850876050,0.10250365,98491.0,98482.0,0.0001069]
[1738850876254,0.152308,98485.0,98482.0,0.0001069]
[1738850876453,0.203068,98489.0,98482.0,0.0001069]
[1738850876663,0.15231,98483.0,98482.0,0.0011069]
[1738850877238,0.16028449,98483.0,98482.0,0.0011069]
[1738850877826,0.16028449,98483.0,98482.0,0.0001069]
[1738850878027,0.16028449,98483.0,98482.0,0.0011069]
[1738850878680,0.16028449,98483.0,98482.0,0.0001069]
[1738850879357,0.16128449,98483.0,98482.0,0.0001069]
[1738850882698,0.42174814,98483.0,98482.0,0.0001069]
[1738850882914,0.87094814,98483.0,98482.0,9e-07]
[1738850883143,0.91279596,98483.0,98482.0,9e-07]
[1738850883569,0.91279596,98483.0,98471.0,0.00044511]
[1738850883570,0.502327,98472.0,98471.0,1e-08]
[1738850883774,0.76122208,98472.0,98471.0,1e-08]
[1738850883976,0.79447624,98472.0,98471.0,1e-08]
[1738850884294,0.72953065,98472.0,98471.0,1e-08]
[1738850884497,0.302332,98469.0,98468.0,8.1e-07]
[1738850884701,0.40483565,98469.0,98468.0,8.1e-07]
[1738850885647,0.41281014,98469.0,98468.0,8.1e-07]
[1738850885849,0.51281014,98469.0,98468.0,8.1e-07]
[1738850886098,0.51481014,98469.0,98468.0,8.1e-07]
[1738850886263,0.51881014,98469.0,98468.0,8.1e-07]
[1738850886683,0.52878216,98469.0,98468.0,8.1e-07]
[1738850887708,0.52478216,98469.0,98468.0,8.1e-07]
[1738850887849,0.52278216,98469.0,98468.0,8.1e-07]
[1738850888049,0.53078216,98469.0,98468.0,8.1e-07]
[1738850888269,0.434739,98464.0,98463.0,8.1e-07]
[1738850888545,0.53724265,98464.0,98463.0,8.1e-07]
[1738850889096,0.54521714,98464.0,98463.0,8.1e-07]
[1738850891499,0.55121714,98464.0,98463.0,8.1e-07]
[1738850891948,0.50237,98444.0,98420.0,0.0149653]
[1738850892146,0.60487365,98444.0,98420.0,0.0149653]
[1738850892953,0.61284814,98444.0,98420.0,0.0149653]
[1738850893162,0.61884814,98444.0,98420.0,0.15281156]
[1738850893726,0.61884814,98444.0,98420.0,0.0149653]
[1738850894026,0.71358105,98444.0,98420.0,0.0149653]
[1738850894221,0.61884814,98444.0,98420.0,0.0149653]
[1738850894447,0.61884814,98444.0,98420.0,0.15281156]
[1738850894700,0.63087076,98444.0,98420.0,0.15281156]
[1738850895378,0.63087076,98444.0,98420.0,0.0149653]
[1738850895850,0.64356254,98444.0,98420.0,0.0149653]
[1738850897744,0.63087076,98444.0,98420.0,0.0149653]
[1738850900088,0.63087076,98444.0,98420.0,0.15281156]
[1738850900980,0.63087076,98444.0,98420.0,0.0149653]
[1738850902931,0.43087076,98444.0,98433.0,0.0806]
[1738850903323,0.11847814,98444.0,98433.0,0.0806]
[1738850903486,0.16834449,98444.0,98433.0,0.0806]
[1738850904031,0.27084814,98444.0,98433.0,0.0806]
[1738850904262,0.26287365,98444.0,98424.0,0.079]
[1738850905055,0.37084814,98444.0,98424.0,0.079]
[1738850906454,0.38355576,98444.0,98424.0,0.079]
[1738850907090,0.02868211,98444.0,98436.0,0.152383]
[1738850907278,0.02868211,98444.0,98431.0,0.0482]
[1738850907279,0.02868211,98444.0,98432.0,0.152388]
[1738850907479,0.18105211,98444.0,98431.0,0.0482]
[1738850907709,0.18105211,98444.0,98431.0,0.0002]
[1738850907930,0.28155576,98444.0,98431.0,0.0002]
[1738850908255,0.17405211,98444.0,98443.0,0.0767068]
[1738850908705,0.17605211,98444.0,98443.0,0.0767068]
[1738850909298,0.17605211,98444.0,98443.0,0.0001068]
[1738850909474,0.16334449,98444.0,98443.0,0.0001068]
[1738850910759,0.46724814,98444.0,98443.0,0.0001068]
[1738850910965,0.66694814,98444.0,98443.0,0.0001068]
[1738850912107,0.66394814,98444.0,98443.0,0.0001068]
[1738850912285,0.67194814,98444.0,98443.0,0.0001068]
[1738850916848,0.1,98433.0,98431.0,0.0002]
[1738850917053,0.46529265,98432.0,98431.0,0.0002]
[1738850918161,0.31290365,98432.0,98420.0,0.01450439]
[1738850918398,0.152406,98421.0,98420.0,0.0146435]
[1738850919784,0.16038049,98421.0,98420.0,0.0146435]
[1738850920152,0.55245896,98421.0,98420.0,5e-07]
[1738850920373,0.56736414,98421.0,98420.0,5e-07]
[1738850920572,0.61899604,98421.0,98420.0,5e-07]
[1738850920775,0.69959604,98421.0,98420.0,5e-07]
[1738850920999,0.80209969,98421.0,98420.0,5e-07]
[1738850921555,0.402418,98413.0,98412.0,0.0001068]
[1738850921687,0.53664802,98413.0,98412.0,0.00057116]
[1738850922884,0.65738351,98413.0,98412.0,0.00057116]
[1738850923160,0.62565714,98413.0,98412.0,0.00057116]
[1738850923363,0.63385714,98413.0,98412.0,0.00057116]
[1738850923769,0.62565714,98413.0,98412.0,0.00057116]
[1738850924010,0.4868726,98413.0,98412.0,0.00057116]
[1738850924185,0.2868726,98413.0,98412.0,0.00057116]
[1738850924394,0.3868726,98413.0,98412.0,0.00057116]
[1738850924928,0.37665714,98413.0,98412.0,0.00057116]
[1738850925582,0.37865714,98413.0,98412.0,0.00057116]
[1738850925790,0.27865714,98413.0,98412.0,0.00057116]
[1738850926424,0.26589614,98413.0,98412.0,0.00057116]
[1738850927149,0.16239249,98413.0,98412.0,0.00057116]
[1738850927368,0.16339249,98413.0,98412.0,0.00057116]
[1738850927560,0.16139249,98413.0,98412.0,0.00057116]
[1738850927971,0.16039249,98413.0,98412.0,0.00057116]
[1738850928604,0.16039249,98413.0,98412.0,0.00017961]
[1738850928724,0.152418,98413.0,98412.0,0.00017961]
[1738850928921,0.003,98413.0,98412.0,0.00017961]
[1738850929135,0.2104,98432.0,98416.0,0.08]
[1738850929358,0.152391,98431.0,98420.0,0.34105526]
[1738850929556,0.2104,98432.0,98421.0,0.00511434]
[1738850929968,0.2104,98432.0,98420.0,0.13784626]
[1738850930169,0.2104,98432.0,98421.0,0.00613027]
[1738850930373,0.2104,98432.0,98428.0,0.152394]
[1738850930574,0.003,98431.0,98429.0,0.00510967]
[1738850930773,0.2114,98432.0,98421.0,0.203208]
[1738850931035,0.2114,98432.0,98422.0,0.00511375]
[1738850931207,0.152403,98424.0,98422.0,0.00511375]
[1738850931523,0.2114,98432.0,98419.0,0.152408]
[1738850931744,0.2114,98432.0,98423.0,0.00511317]
[1738850931945,0.152394,98429.0,98420.0,0.13784626]
[1738850932114,0.2114,98432.0,98424.0,0.00511259]
[1738850932316,0.2114,98432.0,98420.0,0.13784626]
[1738850932317,0.152392,98430.0,98420.0,0.13784626]
[1738850932519,0.152392,98430.0,98425.0,0.005112]
[1738850932683,0.152392,98430.0,98423.0,0.152403]
[1738850932885,0.152392,98430.0,98426.0,0.00511142]
[1738850933088,0.152392,98430.0,98423.0,0.152403]
[1738850933439,0.152401,98425.0,98420.0,0.13784626]
[1738850933642,0.152405,98422.0,98420.0,0.13784626]
[1738850934479,0.152405,98422.0,98416.0,0.08]
[1738850934589,0.152405,98422.0,98420.0,0.001]
[1738850934801,0.001,98430.0,98420.0,0.001]
[1738850935005,0.1524,98426.0,98420.0,0.001]
[1738850935202,0.152401,98425.0,98420.0,0.001]
[1738850935472,0.2104,98432.0,98420.0,0.001]
[1738850935886,0.152405,98422.0,98420.0,0.001]
[1738850936420,0.20319,98430.0,98420.0,0.001]
[1738850936727,0.152392,98430.0,98420.0,0.13784626]
[1738850936888,0.152392,98430.0,98423.0,0.152403]
[1738850937286,0.2104,98432.0,98421.0,0.0753]
[1738850937488,0.2104,98432.0,98429.0,0.152393]
[1738850937701,0.2104,98432.0,98428.0,0.152394]
[1738850937894,0.2104,98432.0,98422.0,0.203206]
[1738850938098,0.362791,98432.0,98425.0,0.152399]
[1738850938533,0.152394,98429.0,98422.0,0.152404]
[1738850938719,0.152399,98426.0,98421.0,0.0753]
[1738850938920,0.152402,98424.0,98421.0,0.0753]
[1738850939084,0.152399,98426.0,98422.0,0.00510081]
[1738850939282,0.00022428,98431.0,98422.0,0.00510081]
[1738850939492,0.00022428,98431.0,98425.0,0.15]
[1738850939721,0.00022428,98431.0,98430.0,0.230192]
[1738850939922,0.00022428,98431.0,98430.0,0.38356717]
[1738850940127,0.00022428,98431.0,98430.0,0.53356717]
[1738850941212,0.00022428,98431.0,98430.0,0.5534988]
[1738850941422,0.00022428,98431.0,98430.0,0.5634988]
[1738850941599,0.08096469,98451.0,98450.0,0.152361]
[1738850941821,0.08096469,98451.0,98450.0,0.33872567]
[1738850942354,0.09115906,98469.0,98462.0,0.312343]
[1738850942557,0.09115906,98469.0,98462.0,0.49404665]
[1738850942770,0.00068574,98463.0,98462.0,0.50869081]
[1738850943034,0.09115906,98469.0,98468.0,0.312333]
[1738850943241,0.09129729,98469.0,98468.0,0.49403665]
[1738850943396,0.09129729,98469.0,98468.0,0.49825575]
[1738850943767,0.00013823,98469.0,98468.0,0.49825575]
[1738850943963,0.09115906,98501.0,98476.0,0.01]
[1738850944163,0.09115906,98501.0,98468.0,0.25672275]
[1738850944164,0.08096469,98500.0,98482.0,0.418212]
[1738850944410,0.08096469,98500.0,98482.0,0.52491949]
[1738850944811,5e-07,98483.0,98482.0,0.54475148]
[1738850945024,0.09115906,98501.0,98500.0,0.388484]
[1738850945182,0.09115906,98501.0,98500.0,0.53608765]
[1738850945562,0.09129812,98501.0,98500.0,0.54027141]
[1738850946659,0.00113906,98501.0,98500.0,0.54027141]
[1738850947161,0.00113906,98501.0,98500.0,0.56100014]
[1738850947302,0.00022428,98530.0,98500.0,0.56100014]
[1738850947303,0.00022428,98530.0,98500.0,0.57098805]
[1738850947511,0.00022428,98530.0,98506.0,0.42477765]
[1738850947693,0.00022428,98530.0,98506.0,0.50737765]
[1738850948078,0.00022428,98530.0,98506.0,0.51197664]
[1738850948703,0.00022428,98530.0,98506.0,0.56097664]
[1738850949261,0.00022428,98530.0,98524.0,0.312247]
[1738850949463,0.00022428,98530.0,98524.0,0.41475065]
[1738850949851,0.00022428,98530.0,98524.0,0.4193402]
[1738850951226,0.00022428,98530.0,98524.0,0.4233402]
[1738850951707,0.00122428,98525.0,98524.0,0.52563749]
[1738850952903,0.00122428,98525.0,98524.0,0.53590138]
[1738850953104,0.00122428,98525.0,98524.0,0.27433749]
[1738850953312,0.00122428,98525.0,98524.0,0.1120932]
[1738850953512,0.15346928,98525.0,98524.0,0.00958955]
[1738850953926,0.15346928,98525.0,98524.0,0.005]
[1738850954053,0.15346928,98525.0,98524.0,0.001]
[1738850954276,0.15346928,98525.0,98524.0,0.003]
[1738850954884,0.15346928,98525.0,98524.0,0.001]
[1738850955091,0.00222428,98525.0,98524.0,0.003]
[1738850955246,0.15446928,98525.0,98524.0,0.003]
[1738850955446,0.00022428,98525.0,98524.0,0.00678981]
[1738850955654,0.00122428,98525.0,98524.0,0.002]
[1738850955900,0.15346928,98525.0,98524.0,0.00678981]
[1738850956117,0.00122428,98525.0,98524.0,0.154247]
[1738850956492,0.00122428,98525.0,98524.0,0.30903829]
[1738850956695,0.00122428,98525.0,98524.0,0.31703829]
[1738850957176,0.00122428,98525.0,98524.0,0.5062485]
[1738850957694,0.00022428,98525.0,98524.0,0.5062485]
[1738850957899,0.00122428,98525.0,98524.0,0.5182485]
[1738850958311,0.00022428,98525.0,98524.0,0.53678861]
[1738850958678,0.00122428,98525.0,98524.0,0.53678861]
[1738850959286,0.00122428,98525.0,98524.0,0.51678861]
[1738850959477,0.00122428,98525.0,98524.0,0.53678861]
[1738850959773,0.00122428,98525.0,98524.0,0.53878861]
[1738850961024,0.00022428,98525.0,98524.0,0.53678861]
[1738850961371,0.00122428,98525.0,98524.0,0.54678861]
[1738850961949,0.00122428,98525.0,98524.0,0.57187365]
[1738850962185,0.00022428,98525.0,98524.0,0.56487365]
[1738850962370,0.00122428,98525.0,98524.0,0.53878861]
[1738850962546,0.00122428,98525.0,98524.0,0.54878861]
[1738850963039,0.00122428,98525.0,98524.0,0.57087365]
[1738850963231,2.8e-07,98525.0,98524.0,0.57087365]
[1738850963614,5.6e-07,98530.0,98529.0,0.02]
[1738850963747,5.6e-07,98530.0,98529.0,0.44306716]
[1738850963957,5.6e-07,98530.0,98529.0,0.45459513]
[1738850964162,0.00022471,98562.0,98529.0,0.45813403]
[1738850964371,0.00022471,98562.0,98561.0,0.01]
[1738850964574,0.00068804,98562.0,98561.0,0.41469365]
[1738850964785,0.00068804,98562.0,98561.0,0.41943824]
[1738850964984,0.00068804,98562.0,98561.0,0.25724824]
[1738850965176,0.00068804,98562.0,98561.0,0.15474459]
[1738850965374,0.00068804,98562.0,98561.0,0.00474459]
[1738850965616,0.00068804,98562.0,98551.0,0.152205]
[1738850965809,0.00068804,98562.0,98553.0,0.15]
[1738850966033,0.00068804,98562.0,98558.0,0.15]
[1738850966263,0.00068804,98562.0,98560.0,0.15219]
[1738850966475,0.00068804,98562.0,98561.0,0.15]
[1738850966620,0.00068804,98562.0,98561.0,0.15474079]
[1738850966819,0.00168804,98562.0,98561.0,0.16274079]
[1738850967160,0.00068804,98562.0,98561.0,0.15674079]
[1738850967322,0.00068804,98562.0,98561.0,0.25724444]
[1738850968093,0.00168804,98562.0,98561.0,0.26224444]
[1738850968478,0.00068804,98562.0,98561.0,0.26724444]
[1738850968685,0.00068804,98562.0,98561.0,0.27524444]
[1738850968903,0.00168804,98562.0,98561.0,0.35814444]
[1738850969093,0.00168804,98562.0,98561.0,0.36814444]
[1738850970083,0.00168804,98562.0,98561.0,0.37014444]
[1738850970317,0.00168804,98562.0,98561.0,0.39008771]
[1738850970521,0.0002245,98606.0,98581.0,0.312159]
[1738850970722,0.00036344,98582.0,98581.0,0.41466265]
[1738850970926,0.00036344,98582.0,98581.0,0.41938829]
[1738850972042,0.00136344,98582.0,98581.0,0.42838829]
[1738850972428,0.00036344,98582.0,98581.0,0.41938829]
[1738850972628,0.00036344,98582.0,98581.0,0.42938829]
[1738850972830,0.00036344,98582.0,98581.0,0.43952746]
[1738850973581,0.00036344,98582.0,98581.0,0.44252746]
[1738850973734,0.00136344,98582.0,98581.0,0.29152746]
[1738850973938,0.00136344,98582.0,98581.0,0.26838829]
[1738850974137,0.00136344,98582.0,98581.0,0.11922929]
[1738850974978,0.00136344,98582.0,98581.0,0.01672564]
[1738850974979,0.15352044,98582.0,98581.0,0.01672564]
[1738850975182,0.15252044,98582.0,98581.0,0.00772564]
[1738850975346,0.15252044,98582.0,98581.0,0.003]
[1738850975541,0.152171,98573.0,98569.0,0.15]
[1738850975785,0.152174,98571.0,98570.0,0.00444822]
[1738850975939,0.152174,98571.0,98560.0,0.42059893]